[Event "XIII Mediterranean Championship 2023"]
[Site "Castell-Platja d Aro"]
[Date "2023.11.10"]
[Round "8.15"]
[White "Fortuny Profitos, Jordi"]
[Black "Menac Comas, Joan Ramon"]
[Result "0-1"]
[ECO "D00"]
[WhiteElo "2135"]
[BlackElo "2044"]
[Annotator "RC"]
[PlyCount "110"]
[EventDate "2023.10.26"]
[EventType "swiss"]
[EventCountry "ESP"]
[SourceTitle "playchess.com"]
[Source "ChessBase"]
[SourceQuality "1"]
[TimeControl "5400+30"]

1. d4 {[%emt 0:00:01]} d5 {[%emt 0:00:06]} 2. Bf4 {[%emt 0:00:05]} c5 {[%emt 0:00:10]} 3. e3 {[%emt 0:00:09]} Nc6 {[%emt 0:00:07]} 4. c3 {[%emt 0:00:28]} Qb6 {[%emt 0:00:35]} 5. Qb3 {[%emt 0:00:05]} c4 {[%emt 0:01:01]} 6. Qc2 {[%emt 0:03:22]} e5 {[%emt 0:00:41]} 7. dxe5 {[%emt 0:03:01]} Bf5 {[%emt 0:01:26]} 8. Qc1 {[%emt 0:06:22]} g5 {[%emt 0:01:05]} 9. Bg3 {[%emt 0:03:52]} h5 {[%emt 0:00:08]} 10. h3 {[%emt 0:04:02]} Bg7 {[%emt 0:04:11]} 11. Nf3 {[%emt 0:05:58]} g4 {[%emt 0:03:45]} 12. Nd4 {[%emt 0:04:11]} Nge7 {[%emt 0:05:41]} 13. Nd2 {[%emt 0:04:13]} Nxe5 {[%emt 0:09:03]} 14. Bxe5 {[%emt 0:01:27]} Bxe5 {[%emt 0:00:10]} 15. Nxf5 {[%emt 0:00:04]} Nxf5 {[%emt 0:00:20]} 16. hxg4 {[%emt 0:00:02]} hxg4 {[%emt 0:22:47]} 17. Rxh8+ {[%emt 0:00:31]} Bxh8 {[%emt 0:00:01]} 18. Qc2 {[%emt 0:04:36]} Nd6 {[%emt 0:09:50]} 19. Qa4+ {[%emt 0:12:54]} Kf8 {[%emt 0:01:59]} 20. O-O-O {[%emt 0:01:00]} g3 {[%emt 0:06:14]} 21. Qa3 {[%emt 0:08:49]} Kg8 {[%emt 0:01:47]} 22. f3 {[%emt 0:00:54]} Re8 {[%emt 0:03:26]} 23. Re1 {[%emt 0:02:35]} Nb5 {[%emt 0:06:44]} 24. Qb4 {[%emt 0:03:38]} a5 {[%emt 0:00:20]} 25. Qa4 {[%emt 0:00:01]} Re6 {[%emt 0:00:43]} 26. e4 {[%emt 0:06:44]} Bxc3 {[%emt 0:09:42]} 27. bxc3 {[%emt 0:03:24]} Nxc3 {[%emt 0:00:03]} 28. Qa3 {[%emt 0:05:36]} Qf2 {[%emt 0:00:18]} 29. Qxc3 {[%emt 0:00:55]} Qxe1+ {[%emt 0:00:02]} 30. Kc2 {[%emt 0:00:17]} dxe4 {[%emt 0:04:36]} 31. fxe4 {[%emt 0:02:08]} b5 {[%emt 0:01:39]} 32. Qd4 {[%emt 0:04:43]} Kh7 {[%emt 0:04:21]} 33. Qd5 {[%emt 0:03:13]} Qa1 {[%emt 0:00:29]} 34. Qh5+ {[%emt 0:01:00]} Kg7 {[%emt 0:00:10]} 35. Qxb5 {[%emt 0:01:16]} Qxa2+ {[%emt 0:00:06]} 36. Qb2+ {[%emt 0:00:41]} Qxb2+ {[%emt 0:00:11]} 37. Kxb2 {[%emt 0:00:02]} Rf6 {[%emt 0:01:23]} 38. Nf3 {[%emt 0:00:51]} Rxf3 {[%emt 0:00:47]} 39. gxf3 {[%emt 0:00:02]} Kf6 {[%emt 0:00:17]} 40. Kc3 {[%emt 0:05:11]} Ke5 {[%emt 0:00:17]} 41. Kxc4 {[%emt 0:00:18]} Kf4 {[%emt 0:00:11]} 42. Bg2 {[%emt 0:00:02]} Ke3 {[%emt 0:01:08]} 43. e5 {[%emt 0:00:48]} Kf4 {[%emt 0:01:41]} 44. Kb5 {[%emt 0:00:17]} Kxe5 {[%emt 0:00:45]} 45. Kxa5 {[%emt 0:00:12]} Kf4 {[%emt 0:00:22]} 46. Kb4 {[%emt 0:00:55]} Ke3 {[%emt 0:00:16]} 47. Bh1 {[%emt 0:01:18]} f5 {[%emt 0:00:25]} 48. Kc4 {[%emt 0:00:17]} Kf2 {[%emt 0:01:41]} 49. f4 {[%emt 0:00:05]} g2 {[%emt 0:00:18]} 50. Bxg2 {[%emt 0:00:05]} Kxg2 {[%emt 0:00:07]} 51. Kd4 {[%emt 0:00:15]} Kf3 {[%emt 0:00:16]} 52. Kd3 {[%emt 0:00:14]} Kxf4 {[%emt 0:00:08]} 53. Ke2 {[%emt 0:00:01]} Kg3 {[%emt 0:00:09]} 54. Kf1 {[%emt 0:00:03]} Kf3 {[%emt 0:00:06]} 55. Kg1 {[%emt 0:00:04]} Ke2 {[%emt 0:00:13]} 0-1

[Event "XIII Mediterranean Championship 2023"]
[Site "Castell-Platja d Aro"]
[Date "2023.11.10"]
[Round "8.16"]
[White "Guillo Longares, Cecilia"]
[Black "De Lomas Busquets, Alba"]
[Result "1-0"]
[ECO "D25"]
[WhiteElo "2065"]
[BlackElo "1873"]
[Annotator "NA RC"]
[PlyCount "103"]
[EventDate "2023.10.26"]
[EventType "swiss"]
[EventCountry "ESP"]
[SourceTitle "playchess.com"]
[Source "ChessBase"]
[SourceQuality "1"]
[TimeControl "5400+30"]

1. d4 {[%emt 0:00:01]} d5 {[%emt 0:00:16]} 2. c4 {[%emt 0:00:06]} dxc4 {[%emt 0:00:16]} 3. Nf3 {[%emt 0:00:05]} Nf6 {[%emt 0:00:45]} 4. e3 {[%emt 0:00:05]} Bg4 {[%emt 0:00:13]} 5. Bxc4 {[%emt 0:00:06]} e6 {[%emt 0:00:04]} 6. O-O {[%emt 0:00:08]} Nbd7 {[%emt 0:00:12]} 7. Nc3 {[%emt 0:00:11]} Bb4 {[%emt 0:00:18]} 8. Qb3 {[%emt 0:00:12]} c5 {[%emt 0:01:39]} 9. Ne5 {[%emt 0:00:22]} Nxe5 {[%emt 0:06:17]} 10. dxe5 {[%emt 0:00:15]} Nd7 {[%emt 0:01:36]} 11. f3 {[%emt 0:01:12]} Bxc3 {[%emt 0:09:06]} 12. bxc3 {[%emt 0:04:19]} Bf5 {[%emt 0:01:22]} 13. e4 {[%emt 0:02:07]} Bg6 {[%emt 0:00:51]} 14. Rd1 {[%emt 0:00:59]} Qb6 {[%emt 0:11:05]} 15. Qa4 {[%emt 0:02:25]} O-O-O {[%emt 0:03:53]} 16. Bg5 {[%emt 0:16:47]} f6 {[%emt 0:03:17]} 17. Rdb1 {[%emt 0:06:30]} Qc7 {[%emt 0:04:01]} 18. Qxa7 {[%emt 0:00:57]} Qb8 {[%emt 0:09:11]} 19. Qxb8+ {[%emt 0:10:01]} Kxb8 {[%emt 0:00:15]} 20. exf6 {[%emt 0:00:15]} gxf6 {[%emt 0:00:35]} 21. Bh4 {[%emt 0:00:41]} Rhe8 {[%emt 0:07:43]} 22. Bb5 {[%emt 0:04:31]} Rf8 {[%emt 0:04:00]} 23. Bc6 {[%emt 0:02:25]} Ne5 {[%emt 0:02:54]} 24. Bxb7 {[%emt 0:02:18]} Ka7 {[%emt 0:01:13]} 25. Bf2 {[%emt 0:11:07]} Nd3 {[%emt 0:01:33]} 26. Bc6 {[%emt 0:00:52]} Rb8 {[%emt 0:07:48]} 27. Be3 {[%emt 0:02:43]} f5 {[%emt 0:01:41]} 28. Bb5 {[%emt 0:03:34]} f4 {[%emt 0:03:02]} 29. Bxd3 {[%emt 0:05:13]} fxe3 {[%emt 0:00:05]} 30. Rxb8 {[%emt 0:00:10]} Rxb8 {[%emt 0:00:33]} 31. Bc4 {[%emt 0:00:47]} e5 {[%emt 0:00:45]} 32. Re1 {[%emt 0:00:06]} Rb2 {[%emt 0:00:39]} 33. Rxe3 {[%emt 0:00:19]} Rc2 {[%emt 0:00:05]} 34. Bb3 {[%emt 0:00:33]} Rc1+ {[%emt 0:00:10]} 35. Kf2 {[%emt 0:00:09]} Kb6 {[%emt 0:00:24]} 36. Ke2 {[%emt 0:01:47]} Kb5 {[%emt 0:00:50]} 37. Kd3 {[%emt 0:01:08]} Rg1 {[%emt 0:01:39]} 38. Re2 {[%emt 0:00:14]} Kb6 {[%emt 0:00:59]} 39. Rb2 {[%emt 0:00:39]} Kc7 {[%emt 0:01:19]} 40. Bd5 {[%emt 0:00:33]} Rc1 {[%emt 0:01:26]} 41. a4 {[%emt 0:03:27]} Rd1+ {[%emt 0:00:31]} 42. Kc4 {[%emt 0:00:57]} Ra1 {[%emt 0:00:15]} 43. Kxc5 {[%emt 0:01:03]} Rxa4 {[%emt 0:00:05]} 44. Rb7+ {[%emt 0:00:10]} Kc8 {[%emt 0:00:17]} 45. Kd6 {[%emt 0:00:29]} Ra6+ {[%emt 0:01:56]} 46. Kxe5 {[%emt 0:00:18]} Ra5 {[%emt 0:00:03]} 47. Rg7 {[%emt 0:00:33]} Kd8 {[%emt 0:00:34]} 48. c4 {[%emt 0:00:57]} Ke8 {[%emt 0:00:14]} 49. c5 {[%emt 0:01:29]} Kf8 {[%emt 0:00:51]} 50. Kf6 {[%emt 0:00:10]} Ke8 {[%emt 0:00:39]} 51. c6 {[%emt 0:00:16]} Kd8 {[%emt 0:00:20]} 52. c7+ {[%emt 0:00:06]} 1-0

[Event "XIII Mediterranean Championship 2023"]
[Site "Castell-Platja d Aro"]
[Date "2023.11.10"]
[Round "8.17"]
[White "Jimenez Fernandez, Rebeca"]
[Black "Pla Almenar, Nel"]
[Result "1-0"]
[ECO "C45"]
[WhiteElo "2053"]
[BlackElo "2070"]
[Annotator "NA RC"]
[PlyCount "75"]
[EventDate "2023.10.26"]
[EventType "swiss"]
[EventCountry "ESP"]
[SourceTitle "playchess.com"]
[Source "ChessBase"]
[SourceQuality "1"]
[TimeControl "5400+30"]

1. e4 {[%emt 0:00:02]} e5 {[%emt 0:02:43]} 2. Nf3 {[%emt 0:00:09]} Nc6 {[%emt 0:00:06]} 3. d4 {[%emt 0:02:50]} exd4 {[%emt 0:00:07]} 4. Nxd4 {[%emt 0:00:11]} Nf6 {[%emt 0:01:17]} 5. Nxc6 {[%emt 0:00:07]} bxc6 {[%emt 0:00:12]} 6. e5 {[%emt 0:00:04]} Qe7 {[%emt 0:00:50]} 7. Qe2 {[%emt 0:00:04]} Nd5 {[%emt 0:00:04]} 8. c4 {[%emt 0:00:10]} Ba6 {[%emt 0:03:07]} 9. Nd2 {[%emt 0:04:07]} Nf4 {[%emt 0:10:21]} 10. Qe4 {[%emt 0:01:49]} Ne6 {[%emt 0:00:23]} 11. Be2 {[%emt 0:13:01]} g6 {[%emt 0:03:17]} 12. O-O {[%emt 0:01:27]} Bg7 {[%emt 0:01:58]} 13. f4 {[%emt 0:05:37]} Nc5 {[%emt 0:26:21]} 14. Qc2 {[%emt 0:02:28]} d5 {[%emt 0:02:50]} 15. b4 {[%emt 0:07:55]} Nd7 {[%emt 0:05:04]} 16. Ba3 {[%emt 0:25:57]} O-O {[%emt 0:07:36]} 17. Rf3 {[%emt 0:02:27]} c5 {[%emt 0:08:30]} 18. bxc5 {[%emt 0:00:40]} c6 {[%emt 0:00:04]} 19. Re1 {[%emt 0:01:23]} dxc4 {[%emt 0:01:34]} 20. Bxc4 {[%emt 0:02:00]} Bxc4 {[%emt 0:00:35]} 21. Qxc4 {[%emt 0:00:47]} Nf6 {[%emt 0:01:57]} 22. Rff1 {[%emt 0:07:43]} Nd5 {[%emt 0:00:32]} 23. Ne4 {[%emt 0:02:16]} Qc7 {[%emt 0:04:15]} 24. Bb2 {[%emt 0:04:29]} Rab8 {[%emt 0:01:53]} 25. Bc3 {[%emt 0:00:44]} h5 {[%emt 0:01:09]} 26. Nf6+ {[%emt 0:09:11]} Bxf6 {[%emt 0:01:09]} 27. exf6 {[%emt 0:00:05]} Rfe8 {[%emt 0:00:08]} 28. Be5 {[%emt 0:00:32]} Qa5 {[%emt 0:00:13]} 29. f5 {[%emt 0:01:30]} Qd2 {[%emt 0:08:09]} 30. fxg6 {[%emt 0:01:23]} Rb2 {[%emt 0:00:13]} 31. gxf7+ {[%emt 0:00:42]} Kxf7 {[%emt 0:00:14]} 32. Qe4 {[%emt 0:00:40]} Rxe5 {[%emt 0:00:17]} 33. Qh7+ {[%emt 0:00:09]} Ke6 {[%emt 0:00:32]} 34. Qg8+ {[%emt 0:01:21]} Kd7 {[%emt 0:00:13]} 35. Rxe5 {[%emt 0:01:15]} Qd4+ {[%emt 0:02:46]} 36. Kh1 {[%emt 0:00:05]} Rf2 {[%emt 0:00:41]} 37. Qf7+ {[%emt 0:00:45]} Kc8 {[%emt 0:00:22]} 38. Re8# {[%emt 0:00:06]} 1-0

[Event "XIII Mediterranean Championship 2023"]
[Site "Castell-Platja d Aro"]
[Date "2023.11.10"]
[Round "8.18"]
[White "Pham Guerrero, Sergi"]
[Black "Canigueral Salvado, Jaume"]
[Result "1-0"]
[ECO "C02"]
[WhiteElo "2072"]
[BlackElo "1853"]
[Annotator "NA RC"]
[PlyCount "63"]
[EventDate "2023.10.26"]
[EventType "swiss"]
[EventCountry "ESP"]
[SourceTitle "playchess.com"]
[Source "ChessBase"]
[SourceQuality "1"]
[TimeControl "5400+30"]

1. e4 {[%emt 0:00:07]} e6 {[%emt 0:00:19]} 2. d4 {[%emt 0:00:10]} d5 {[%emt 0:00:10]} 3. e5 {[%emt 0:00:12]} c5 {[%emt 0:00:16]} 4. c3 {[%emt 0:00:08]} cxd4 {[%emt 0:00:35]} 5. cxd4 {[%emt 0:00:14]} Bb4+ {[%emt 0:00:10]} 6. Nc3 {[%emt 0:01:01]} Ne7 {[%emt 0:05:50]} 7. Bd3 {[%emt 0:00:48]} Ng6 {[%emt 0:03:14]} 8. Nf3 {[%emt 0:05:51]} Nc6 {[%emt 0:02:38]} 9. h4 {[%emt 0:01:16]} Qa5 {[%emt 0:03:17]} 10. Bd2 {[%emt 0:00:51]} h6 {[%emt 0:02:20]} 11. h5 {[%emt 0:03:13]} Nge7 {[%emt 0:00:33]} 12. a3 {[%emt 0:01:11]} Bxc3 {[%emt 0:00:13]} 13. Bxc3 {[%emt 0:00:58]} Qb6 {[%emt 0:01:01]} 14. b4 {[%emt 0:01:37]} a6 {[%emt 0:02:47]} 15. O-O {[%emt 0:04:39]} Bd7 {[%emt 0:09:38]} 16. a4 {[%emt 0:03:25]} O-O {[%emt 0:08:19]} 17. b5 {[%emt 0:10:04]} Nb8 {[%emt 0:09:11]} 18. Qd2 {[%emt 0:04:36]} Qd8 {[%emt 0:01:44]} 19. Bb4 {[%emt 0:02:29]} f5 {[%emt 0:02:10]} 20. exf6 {[%emt 0:10:34]} Rxf6 {[%emt 0:00:17]} 21. Ne5 {[%emt 0:00:21]} Be8 {[%emt 0:05:42]} 22. g4 {[%emt 0:02:12]} Nd7 {[%emt 0:02:06]} 23. f4 {[%emt 0:03:23]} Nxe5 {[%emt 0:03:05]} 24. dxe5 {[%emt 0:00:59]} Rf8 {[%emt 0:01:17]} 25. f5 {[%emt 0:01:11]} exf5 {[%emt 0:03:37]} 26. gxf5 {[%emt 0:00:27]} Rf7 {[%emt 0:05:13]} 27. f6 {[%emt 0:06:18]} Qb6+ {[%emt 0:02:08]} 28. Kh1 {[%emt 0:00:17]} Qe6 {[%emt 0:03:11]} 29. Bg6 {[%emt 0:09:09]} gxf6 {[%emt 0:04:58]} 30. Bxf7+ {[%emt 0:02:54]} Bxf7 {[%emt 0:00:59]} 31. Bxe7 {[%emt 0:00:37]} Qxe7 {[%emt 0:01:02]} 32. Qxh6 {[%emt 0:00:18]} 1-0

[Event "XIII Mediterranean Championship 2023"]
[Site "Castell-Platja d Aro"]
[Date "2023.11.10"]
[Round "8.19"]
[White "Makka, Ioulia"]
[Black "Mateu Guiu, Esteve"]
[Result "1/2-1/2"]
[ECO "B68"]
[WhiteElo "1900"]
[BlackElo "2075"]
[Annotator "NA RC"]
[PlyCount "58"]
[EventDate "2023.10.26"]
[EventType "swiss"]
[EventCountry "ESP"]
[SourceTitle "playchess.com"]
[Source "ChessBase"]
[SourceQuality "1"]
[TimeControl "5400+30"]

1. e4 {[%emt 0:01:18]} c5 {[%emt 0:00:27]} 2. Nf3 {[%emt 0:00:08]} d6 {[%emt 0:00:10]} 3. d4 {[%emt 0:00:10]} cxd4 {[%emt 0:00:10]} 4. Nxd4 {[%emt 0:00:09]} Nf6 {[%emt 0:00:08]} 5. Nc3 {[%emt 0:00:06]} Nc6 {[%emt 0:00:10]} 6. Bg5 {[%emt 0:00:08]} e6 {[%emt 0:00:11]} 7. Qd2 {[%emt 0:00:12]} a6 {[%emt 0:00:14]} 8. O-O-O {[%emt 0:02:11]} Bd7 {[%emt 0:00:16]} 9. f4 {[%emt 0:01:14]} Be7 {[%emt 0:00:33]} 10. Kb1 {[%emt 0:02:42]} b5 {[%emt 0:08:53]} 11. Nxc6 {[%emt 0:09:13]} Bxc6 {[%emt 0:00:08]} 12. Bxf6 {[%emt 0:18:15]} gxf6 {[%emt 0:12:53]} 13. Qe3 {[%emt 0:02:23]} Qc7 {[%emt 0:05:50]} 14. f5 {[%emt 0:04:07]} Qb7 {[%emt 0:06:53]} 15. fxe6 {[%emt 0:03:35]} fxe6 {[%emt 0:00:04]} 16. Bd3 {[%emt 0:06:37]} O-O-O {[%emt 0:04:28]} 17. Qh3 {[%emt 0:03:39]} Bd7 {[%emt 0:04:15]} 18. Rhf1 {[%emt 0:03:24]} Kb8 {[%emt 0:03:49]} 19. Qe3 {[%emt 0:03:05]} Rdg8 {[%emt 0:05:49]} 20. Rf2 {[%emt 0:00:46]} h5 {[%emt 0:06:50]} 21. Bf1 {[%emt 0:02:20]} Rg5 {[%emt 0:03:25]} 22. Bd3 {[%emt 0:10:39]} Bc6 {[%emt 0:05:42]} 23. Re1 {[%emt 0:03:57]} Re5 {[%emt 0:08:46]} 24. Qf4 {[%emt 0:02:02]} Rg8 {[%emt 0:06:34]} 25. h3 {[%emt 0:03:47]} Bd8 {[%emt 0:06:03]} 26. Rfe2 {[%emt 0:01:16]} Qg7 {[%emt 0:01:10]} 27. Qf2 {[%emt 0:00:47]} Kb7 {[%emt 0:01:24]} 28. Nd1 {[%emt 0:04:36]} Bb6 {[%emt 0:02:04]} 29. Qf4 {[%emt 0:01:20]} Qg6 {[%emt 0:07:41]} 1/2-1/2

[Event "XIII Mediterranean Championship 2023"]
[Site "Castell-Platja d Aro"]
[Date "2023.11.10"]
[Round "8.20"]
[White "Garcia Paolicchi, Raul"]
[Black "Vinolas Anglada, Laura"]
[Result "1-0"]
[ECO "E09"]
[WhiteElo "2051"]
[BlackElo "1884"]
[Annotator "NA RC"]
[PlyCount "79"]
[EventDate "2023.10.26"]
[EventType "swiss"]
[EventCountry "ESP"]
[SourceTitle "playchess.com"]
[Source "ChessBase"]
[SourceQuality "1"]
[TimeControl "5400+30"]

1. d4 {[%emt 0:00:02]} d5 {[%emt 0:03:53]} 2. Nf3 {[%emt 0:00:05]} Nf6 {[%emt 0:00:11]} 3. g3 {[%emt 0:00:23]} e6 {[%emt 0:01:30]} 4. Bg2 {[%emt 0:00:05]} Be7 {[%emt 0:00:22]} 5. O-O {[%emt 0:00:11]} O-O {[%emt 0:00:18]} 6. c4 {[%emt 0:00:15]} Nbd7 {[%emt 0:00:42]} 7. Qc2 {[%emt 0:00:45]} c6 {[%emt 0:00:27]} 8. Nbd2 {[%emt 0:00:19]} b6 {[%emt 0:01:09]} 9. e4 {[%emt 0:00:39]} dxc4 {[%emt 0:00:23]} 10. Nxc4 {[%emt 0:00:13]} Bb7 {[%emt 0:01:24]} 11. Rd1 {[%emt 0:09:36]} c5 {[%emt 0:00:42]} 12. e5 {[%emt 0:17:25]} Nd5 {[%emt 0:01:02]} 13. Qe4 {[%emt 0:00:14]} Kh8 {[%emt 0:01:05]} 14. Qg4 {[%emt 0:01:43]} b5 {[%emt 0:01:25]} 15. Ne3 {[%emt 0:06:23]} Rc8 {[%emt 0:06:08]} 16. Nxd5 {[%emt 0:02:38]} Bxd5 {[%emt 0:00:21]} 17. Be3 {[%emt 0:01:06]} Rc7 {[%emt 0:08:49]} 18. Qh5 {[%emt 0:03:11]} c4 {[%emt 0:04:47]} 19. Ng5 {[%emt 0:10:35]} Bxg5 {[%emt 0:02:23]} 20. Bxg5 {[%emt 0:00:10]} Qe8 {[%emt 0:04:56]} 21. Bxd5 {[%emt 0:02:09]} exd5 {[%emt 0:00:20]} 22. Bd2 {[%emt 0:09:34]} f6 {[%emt 0:01:54]} 23. Qxe8 {[%emt 0:00:20]} Rxe8 {[%emt 0:00:09]} 24. f4 {[%emt 0:00:51]} Kg8 {[%emt 0:08:33]} 25. a4 {[%emt 0:01:21]} bxa4 {[%emt 0:13:47]} 26. Rxa4 {[%emt 0:01:04]} Nb6 {[%emt 0:01:06]} 27. Ra6 {[%emt 0:01:50]} Kf7 {[%emt 0:01:00]} 28. Rda1 {[%emt 0:03:32]} Ree7 {[%emt 0:01:11]} 29. Bb4 {[%emt 0:00:51]} Red7 {[%emt 0:00:36]} 30. f5 {[%emt 0:00:40]} fxe5 {[%emt 0:01:14]} 31. dxe5 {[%emt 0:00:08]} Kg8 {[%emt 0:02:35]} 32. e6 {[%emt 0:01:55]} Rd8 {[%emt 0:00:11]} 33. Rxa7 {[%emt 0:01:26]} Rxa7 {[%emt 0:01:39]} 34. Rxa7 {[%emt 0:00:07]} d4 {[%emt 0:00:58]} 35. Bc5 {[%emt 0:02:16]} d3 {[%emt 0:06:22]} 36. e7 {[%emt 0:00:31]} Rb8 {[%emt 0:01:01]} 37. Rb7 {[%emt 0:08:54]} Ra8 {[%emt 0:00:35]} 38. Rxb6 {[%emt 0:02:14]} Kf7 {[%emt 0:00:18]} 39. Kf2 {[%emt 0:01:30]} Ra1 {[%emt 0:00:54]} 40. Rb8 {[%emt 0:00:50]} 1-0

[Event "XIII Mediterranean Championship 2023"]
[Site "Castell-Platja d Aro"]
[Date "2023.11.10"]
[Round "8.22"]
[White "Clot Chico, Arnau"]
[Black "Andreu Lopez, Santiago"]
[Result "1/2-1/2"]
[ECO "E64"]
[WhiteElo "2008"]
[BlackElo "1834"]
[Annotator "NA RC"]
[PlyCount "82"]
[EventDate "2023.10.26"]
[EventType "swiss"]
[EventCountry "ESP"]
[SourceTitle "playchess.com"]
[Source "ChessBase"]
[SourceQuality "1"]
[TimeControl "5400+30"]

1. c4 {[%emt 0:06:31]} Nf6 {[%emt 0:00:08]} 2. Nc3 {[%emt 0:00:08]} g6 {[%emt 0:00:07]} 3. g3 {[%emt 0:00:09]} Bg7 {[%emt 0:00:06]} 4. Bg2 {[%emt 0:00:06]} O-O {[%emt 0:00:12]} 5. d4 {[%emt 0:00:16]} d6 {[%emt 0:00:16]} 6. Nf3 {[%emt 0:00:07]} c5 {[%emt 0:00:26]} 7. h3 {[%emt 0:04:26]} cxd4 {[%emt 0:02:31]} 8. Nxd4 {[%emt 0:01:06]} Qb6 {[%emt 1:30:44]} 9. Ndb5 {[%emt 0:06:53]} Nc6 {[%emt 0:00:00]} 10. O-O {[%emt 1:15:48]} a6 {[%emt 0:01:00]} 11. Be3 {[%emt 0:00:30]} Qa5 {[%emt 0:00:30]} 12. Nd4 {[%emt 0:00:30]} Bd7 {[%emt 0:00:30]} 13. Nd5 {[%emt 0:00:30]} Nxd5 {[%emt 0:00:30]} 14. cxd5 {[%emt 0:00:00]} Nxd4 {[%emt 0:00:30]} 15. Bxd4 {[%emt 0:01:00]} Bxd4 {[%emt 0:00:00]} 16. Qxd4 {[%emt 0:00:00]} Rfc8 {[%emt 0:00:00]} 17. Rfc1 {[%emt 0:00:00]} Rxc1+ {[%emt 0:00:00]} 18. Rxc1 {[%emt 0:00:00]} Rc8 {[%emt 0:00:00]} 19. Rxc8+ {[%emt 0:00:00]} Bxc8 {[%emt 0:02:30]} 20. Qe3 {[%emt 0:02:30]} Kf8 {[%emt 0:00:30]} 21. Bf3 {[%emt 0:00:30]} Qc5 {[%emt 0:00:00]} 22. Qd2 {[%emt 0:00:30]} a5 {[%emt 0:00:00]} 23. h4 {[%emt 0:00:00]} h5 {[%emt 0:00:00]} 24. Kg2 {[%emt 0:00:00]} b6 {[%emt 0:02:00]} 25. Qh6+ {[%emt 0:00:00]} Kg8 {[%emt 0:00:00]} 26. Qg5 {[%emt 0:00:00]} Kf8 {[%emt 0:00:00]} 27. Qd2 {[%emt 0:02:30]} Bb7 {[%emt 0:00:00]} 28. e4 {[%emt 0:00:00]} Bc8 {[%emt 0:00:00]} 29. Qh6+ {[%emt 0:00:00]} Kg8 {[%emt 0:00:00]} 30. Qg5 {[%emt 0:00:00]} Kf8 {[%emt 0:03:00]} 31. e5 {[%emt 0:00:00]} dxe5 {[%emt 0:00:00]} 32. Qxe5 {[%emt 0:02:30]} f6 {[%emt 0:00:00]} 33. Qb8 {[%emt 0:00:00]} Kg7 {[%emt 0:00:00]} 34. d6 {[%emt 0:00:00]} exd6 {[%emt 0:00:00]} 35. Qa7+ {[%emt 0:01:30]} Kf8 {[%emt 0:02:30]} 36. Qh7 {[%emt 0:00:00]} Bf5 {[%emt 0:00:00]} 37. Qh8+ {[%emt 0:01:00]} Ke7 {[%emt 0:00:00]} 38. Qg7+ {[%emt 0:00:00]} Ke6 {[%emt 0:00:00]} 39. Qg8+ {[%emt 0:01:00]} Ke7 {[%emt 0:02:00]} 40. Qg7+ {[%emt 0:00:00]} Ke6 {[%emt 0:00:30]} 41. Qg8+ {[%emt 0:01:00]} Ke7 {[%emt 0:00:00]} 1/2-1/2

[Event "XIII Mediterranean Championship 2023"]
[Site "Castell-Platja d Aro"]
[Date "2023.11.10"]
[Round "8.23"]
[White "Alonso Gimenez, Mauro"]
[Black "Moran Cabezas, Eric"]
[Result "1-0"]
[ECO "C28"]
[WhiteElo "1978"]
[BlackElo "1736"]
[Annotator "NA RC"]
[PlyCount "45"]
[EventDate "2023.10.26"]
[EventType "swiss"]
[EventCountry "ESP"]
[SourceTitle "playchess.com"]
[Source "ChessBase"]
[SourceQuality "1"]
[TimeControl "5400+30"]

1. e4 {[%emt 0:00:02]} e5 {[%emt 0:00:12]} 2. Bc4 {[%emt 0:00:16]} Nf6 {[%emt 0:00:43]} 3. d3 {[%emt 0:00:15]} Nc6 {[%emt 0:00:40]} 4. Nc3 {[%emt 0:00:09]} d6 {[%emt 0:01:03]} 5. Nge2 {[%emt 0:04:48]} Be7 {[%emt 0:04:28]} 6. O-O {[%emt 0:02:22]} Na5 {[%emt 0:05:03]} 7. f4 {[%emt 0:01:44]} Nxc4 {[%emt 0:05:53]} 8. dxc4 {[%emt 0:00:24]} Bg4 {[%emt 0:00:46]} 9. h3 {[%emt 0:01:09]} Bxe2 {[%emt 0:01:12]} 10. Qxe2 {[%emt 0:00:15]} Qd7 {[%emt 0:00:34]} 11. f5 {[%emt 0:10:05]} c6 {[%emt 0:11:13]} 12. Bg5 {[%emt 0:04:06]} O-O-O {[%emt 0:15:29]} 13. a4 {[%emt 0:08:43]} Nd5 {[%emt 0:08:27]} 14. cxd5 {[%emt 0:06:35]} Bxg5 {[%emt 0:00:32]} 15. b4 {[%emt 0:00:30]} Qc7 {[%emt 0:04:33]} 16. b5 {[%emt 0:03:02]} c5 {[%emt 0:05:23]} 17. a5 {[%emt 0:05:39]} Kd7 {[%emt 0:10:54]} 18. b6 {[%emt 0:11:29]} Qb8 {[%emt 0:02:01]} 19. a6 {[%emt 0:02:19]} bxa6 {[%emt 0:05:23]} 20. bxa7 {[%emt 0:02:48]} Qb4 {[%emt 0:02:31]} 21. Qxa6 {[%emt 0:00:35]} Be3+ {[%emt 0:02:12]} 22. Kh1 {[%emt 0:00:45]} Ke7 {[%emt 0:00:56]} 23. f6+ {[%emt 0:05:34]} 1-0

[Event "XIII Mediterranean Championship 2023"]
[Site "Castell-Platja d Aro"]
[Date "2023.11.10"]
[Round "8.24"]
[White "De Lussac, Estephe"]
[Black "Parramon Arimany, Marc"]
[Result "1-0"]
[ECO "B23"]
[WhiteElo "2013"]
[BlackElo "1834"]
[Annotator "NA RC"]
[PlyCount "57"]
[EventDate "2023.10.26"]
[EventType "swiss"]
[EventCountry "ESP"]
[SourceTitle "playchess.com"]
[Source "ChessBase"]
[SourceQuality "1"]
[TimeControl "5400+30"]

1. e4 {[%emt 0:00:03]} c5 {[%emt 0:07:09]} 2. Nc3 {[%emt 0:00:08]} Nc6 {[%emt 0:00:31]} 3. Bb5 {[%emt 0:00:06]} a6 {[%emt 0:01:02]} 4. Bxc6 {[%emt 0:01:11]} dxc6 {[%emt 0:04:25]} 5. d3 {[%emt 0:00:34]} e5 {[%emt 0:02:08]} 6. f4 {[%emt 0:00:56]} Bd6 {[%emt 0:02:47]} 7. Nf3 {[%emt 0:04:48]} Bg4 {[%emt 0:01:40]} 8. fxe5 {[%emt 0:01:47]} Bxe5 {[%emt 0:02:52]} 9. O-O {[%emt 0:00:07]} Qd6 {[%emt 0:04:40]} 10. h3 {[%emt 0:02:41]} Bh5 {[%emt 0:04:31]} 11. g4 {[%emt 0:13:51]} Bd4+ {[%emt 0:01:28]} 12. Kg2 {[%emt 0:01:18]} Bg6 {[%emt 0:01:17]} 13. Ne2 {[%emt 0:05:57]} Be5 {[%emt 0:00:58]} 14. Nxe5 {[%emt 0:01:47]} Qxe5 {[%emt 0:00:13]} 15. Bf4 {[%emt 0:00:25]} Qe7 {[%emt 0:01:16]} 16. Qe1 {[%emt 0:04:19]} h5 {[%emt 0:01:19]} 17. g5 {[%emt 0:02:50]} O-O-O {[%emt 0:04:06]} 18. Nc3 {[%emt 0:03:21]} f6 {[%emt 0:01:33]} 19. h4 {[%emt 0:01:22]} Qe6 {[%emt 0:01:04]} 20. Na4 {[%emt 0:02:35]} Rd4 {[%emt 0:03:26]} 21. Nxc5 {[%emt 0:03:35]} Qg4+ {[%emt 0:01:29]} 22. Qg3 {[%emt 0:00:30]} Qxg3+ {[%emt 0:03:52]} 23. Kxg3 {[%emt 0:00:24]} Bf7 {[%emt 0:00:34]} 24. Bd2 {[%emt 0:14:17]} Bg6 {[%emt 0:05:38]} 25. Bc3 {[%emt 0:04:02]} Rd6 {[%emt 0:01:58]} 26. Rf4 {[%emt 0:03:57]} Kc7 {[%emt 0:09:48]} 27. e5 {[%emt 0:07:18]} Rd5 {[%emt 0:01:01]} 28. Ne6+ {[%emt 0:00:06]} Kd7 {[%emt 0:00:51]} 29. Nf8+ {[%emt 0:00:08]} 1-0